Workbook

Sheet 供求总体人数
A1: 阳江市公共就业服务机构市场职业供求状况分析 2025年一季度 填报单位：阳江市人力资源和社会保障局 表一：供求总体人数
B2: K6PTE5PB[B2] | C2: 需求人数 | D2: 求职人数 | E2: 求人倍率
A3: K6PTE5PB[A3] | B3: K6PTE5PB[B3] | C3: 人 | D3: 人 | E3: 倍
A4: 甲 | B4: 序号 | C4: 1 | D4: 2 | E4: 3
A5: 本期有效数 | B5: 1 | C5: =按产业分组的需求人数!C8 -> 40,701 | D5: =按职业分组的供求人数!E14 -> 35,341 | E5: =ROUND(C5/D5,2) -> 1.15

Sheet 按产业分组的需求人数
A1: 续表一：按产业分组的需求人数
C2: 需求人数 | D2: 所占比重
C3: 人 | D3: %
A4: 甲 | B4: 序号 | C4: 4 | D4: 5
A5: 第一产业 | B5: 3 | C5: =按行业分组的需求人数!C5-按行业分组的需求人数!C6 -> 11 | D5: =ROUND(C5*100/C8,2) -> 0.03
A6: 第二产业 | B6: 4 | C6: =按行业分组的需求人数!C7-按行业分组的需求人数!C8+按行业分组的需求人数!C9-按行业分组的需求人数!C10+按行业分组的需求人数!C11+按行业分组的需求人数!C12 -> 16,403 | D6: =ROUND(C6*100/C8,2) -> 40.30
A7: 第三产业 | B7: 5 | C7: =按行业分组的需求人数!C6+按行业分组的需求人数!C8+按行业分组的需求人数!C10+SUM(按行业分组的需求人数!C13:C27) -> 24,287 | D7: =ROUND(C7*100/C8,2) -> 59.67
A8: 合计 | C8: =C5+C6+C7 -> 40,701 | D8: =ROUND(C8*100/C8,0) -> 100

Sheet 按行业分组的需求人数
A1: 续表二：按行业分组的需求人数
C2: 需求人数 | D2: 所占比重
C3: 人 | D3: %
A4: 甲 | B4: 序号 | C4: 6 | D4: 7
A5: 农、林、牧、渔业 | B5: 7 | C5: 12 | D5: =ROUND(C5*100/$C$28,2) -> 0.03
A6: 其中，农、林、牧、渔专业及辅助性活动 | B6: 8 | C6: 1 | D6: 0.00
A7: 采矿业 | B7: 9 | C7: 0 | D7: 0.00
A8: 其中，开采专业及辅助性活动 | B8: 10 | C8: 0 | D8: 0.00
A9: 制造业 | B9: 11 | C9: 24,679 | D9: 60.63
A10: 其中，金属制品、机械和设备修理业 | B10: 12 | C10: 9,362 | D10: 23.00
A11: 电力、热力、燃气及水生产和供应业 | B11: 13 | C11: 728 | D11: 1.79
A12: 建筑业 | B12: 14 | C12: 358 | D12: 0.88
A13: 批发和零售业 | B13: 15 | C13: 635 | D13: 1.56
A14: 交通运输、仓储和邮政业 | B14: 16 | C14: 391 | D14: 0.96
A15: 住宿和餐饮业 | B15: 17 | C15: 8,175 | D15: 20.09
A16: 信息传输、软件和信息技术服务业 | B16: 18 | C16: 2,157 | D16: 5.30
A17: 金融业 | B17: 19 | C17: 260 | D17: 0.64
A18: 房地产业 | B18: 20 | C18: 1,326 | D18: 3.26
A19: 租赁和商务服务业 | B19: 21 | C19: 276 | D19: 0.68
A20: 科学研究和技术服务业 | B20: 22 | C20: 211 | D20: 0.52
A21: 水利、环境和公共设施管理业 | B21: 23 | C21: 0 | D21: 0.00
A22: 居民服务、修理和其他服务业 | B22: 24 | C22: 700 | D22: 1.72
A23: 教育 | B23: 25 | C23: 529 | D23: 1.30
A24: 卫生和社会工作 | B24: 26 | C24: 0 | D24: 0.00
A25: 文化、体育和娱乐业 | B25: 27 | C25: 264 | D25: 0.65
A26: 公共管理、社会保障和社会组织 | B26: 28 | C26: 0 | D26: 0.00
A27: 国际组织 | B27: 29 | C27: 0 | D27: 0.00
A28: 合计 | C28: =C5+C7+C9+C11+C12+C13+C14+C15+C16+C17+C18+C19+C20+C21+C22+C23+C24+C25+C26+C27 -> 40,701 | D28: =ROUND(C28/C28*100,0) -> 100

Sheet 按用人单位性质划分的需求人数
A1: 续表三：按用人单位性质划分的需求人数 | D1: 用人单位需求情况
C2: 需求人数 | D2: 所占比重
C3: 人 | D3: %
A4: 甲 | B4: 序号 | C4: 8 | D4: 9
A5: 企 业 | B5: 31 | C5: =C6+C15+C16+C17 -> 40,701 | D5: =ROUND(C5*100/$C$21,2) -> 100.00
A6: 其中： 内资企业 | B6: 32 | C6: =C7+C8+C9+C10+C11+C12+C13+C14 -> 28,073 | D6: =ROUND(C6*100/$C$5,2) -> 68.97
A7: 国有企业 | B7: 33 | C7: 8 | D7: 0.02
A8: 集体企业 | B8: 34 | C8: 0 | D8: 0.00
A9: 股份合作企业 | B9: 35 | C9: 106 | D9: 0.26
A10: 联营企业 | B10: 36 | C10: 53 | D10: 0.13
A11: 有限责任公司 | B11: 37 | C11: 18,050 | D11: 44.35
A12: 股份有限公司 | B12: 38 | C12: 3,309 | D12: 8.13
A13: 私营企业 | B13: 39 | C13: 6,401 | D13: 15.73
A14: 其他企业 | B14: 40 | C14: 146 | D14: 0.36
A15: 港、澳、台商投资企业 | B15: 41 | C15: 602 | D15: 1.48
A16: 外商投资企业 | B16: 42 | C16: 162 | D16: 0.40
A17: 个体经营 | B17: 43 | C17: 11,864 | D17: 29.15
A18: 事 业 | B18: 44 | C18: 0 | D18: =ROUND(C18*100/$C$21,2) -> 0.00
A19: 机 关 | B19: 45 | C19: 0 | D19: =ROUND(C19*100/$C$21,2) -> 0.00
A20: 其 他 | B20: 46 | C20: 0 | D20: =ROUND(C20*100/$C$21,2) -> 0.00
A21: 合计 | C21: =C5+C18+C19+C20 -> 40,701 | D21: =ROUND(C21*100/$C$21,0) -> 100

Sheet 按职业分组的供求人数
A1: 续表四：按职业分组的供求人数
C2: 劳动力供求人数比较
C3: 需求人数 | D3: 需求比重 | E3: 求职人数 | F3: 求职比重 | G3: 求人倍率
C4: 人 | D4: % | E4: 人 | F4: % | G4: 倍
A5: 甲 | B5: 序号 | C5: 10 | D5: 11 | E5: 12 | F5: 13 | G5: 14
A6: 单位负责人 | B6: 48 | C6: 89 | D6: =ROUND(C6*100/C14,2) -> 0.22 | E6: 99 | F6: =ROUND(E6*100/E14,2) -> 0.28 | G6: =IFERROR(ROUND(C6/(E6+$E$13*C6/$C$14),2),"-") -> 0.90
A7: 专业技术人员 | B7: 49 | C7: 6,350 | D7: =ROUND(C7*100/C14,2) -> 15.60 | E7: 3,615 | F7: =ROUND(E7*100/E14,2) -> 10.23 | G7: 1.76
A8: 办事人员和有关人员 | B8: 50 | C8: 10,069 | D8: =ROUND(8*100/C14,2) -> 0.02 | E8: 10,977 | F8: =ROUND(E8*100/E14,2) -> 31.06 | G8: 0.92
A9: 社会生产服务和生活服务人员 | B9: 51 | C9: 7,202 | D9: =ROUND(C9*100/C14,2) -> 17.69 | E9: 8,203 | F9: =ROUND(E9*100/E14,2) -> 23.21 | G9: 0.88
A10: 农林牧渔业生产及辅助人员 | B10: 52 | C10: 8 | D10: =ROUND(C10*100/C14,2) -> 0.02 | E10: 14 | F10: =ROUND(E10*100/E14,2) -> 0.04 | G10: 0.57
A11: 生产制造及有关人员 | B11: 53 | C11: 9,200 | D11: =ROUND(C11*100/C14,2) -> 22.60 | E11: 7,118 | F11: =ROUND(E11*100/E14,2) -> 20.14 | G11: 1.29
A12: 其他 | B12: 54 | C12: 7,783 | D12: =ROUND(C12*100/C14,2) -> 19.12 | E12: 5,315 | F12: =ROUND(E12*100/E14,2) -> 15.04 | G12: 1.46
A13: 无要求 | B13: 55 | C13: —— | D13: —— | E13: 0 | F13: =ROUND(E13*100/$E$14,2) -> 0.00 | G13: ——
A14: 合计 | C14: =C6+C7+C8+C9+C10+C11+C12 -> 40,701 | D14: =ROUND(C14*100/C14,0) -> 100 | E14: =E6+E7+E8+E9+E10+E11+E12+E13 -> 35,341 | F14: =ROUND(E14*100/$E$14,0) -> 100 | G14: ——

Sheet 需求大于求职缺口最大的前二十个职业情况
A1: 续表五：需求大于求职缺口最大的前二十个职业情况(职业细类)
A2: 项 目 | B2: 代码 | C2: 职业代码 | D2: 需求大于求职缺口最大的前二十个职业（职业细类）
D3: 需求人数 | E3: 求职人数 | F3: 缺口数 | G3: 求人倍率
A4: 甲 | B4: 乙 | C4: 15 | D4: 16 | E4: 17 | F4: 18 | G4: 19
A5: 设备工程技术人员 | B5: 56 | C5: 2-02-07-04 | D5: 162 | E5: 75 | F5: =D5-E5 -> 87 | G5: =IFERROR(ROUND(D5/E5,2),"-") -> 2.16
A6: 机械制造工程技术人员 | B6: 57 | C6: 2-02-07-02 | D6: 36 | E6: 10 | F6: =D6-E6 -> 26 | G6: 3.60
A7: 电子元器件工程技术人员 | B7: 58 | C7: 2-02-09-02 | D7: 105 | E7: 7 | F7: 98 | G7: 15.00
A8: 产品质量检验工程技术人员 | B8: 59 | C8: 2-02-31-01 | D8: 80 | E8: 60 | F8: 20 | G8: 1.33
A9: 质量管理工程技术人员 | B9: 60 | C9: 2-02-29-03 | D9: 15 | E9: 10 | F9: 5 | G9: 1.50
A10: 制浆造纸工程技术人员 | B10: 61 | C10: 2-02-36-01 | D10: 15 | E10: 3 | F10: 12 | G10: 5.00
A11: 集成电路工程技术人员 | B11: 62 | C11: 2-02-38-09 | D11: 49 | E11: 8 | F11: 41 | G11: 6.13
A12: 光源与照明工程技术人员 | B12: 63 | C12: 2-02-11-03 | D12: 40 | E12: 5 | F12: 35 | G12: 8.00
A13: 营销员 | B13: 64 | C13: 4-01-02-01 | D13: 23 | E13: 6 | F13: 17 | G13: 3.83
A14: 儿科医师 | B14: 65 | C14: 2-05-01-03 | D14: 5 | E14: 0 | F14: 5 | G14: -
A15: 电工电器工程技术人员 | B15: 66 | C15: 2-02-11-01 | D15: 30 | E15: 6 | F15: 24 | G15: 5.00
A16: 企业经理 | B16: 67 | C16: 1-06-01-02 | D16: 14 | E16: 0 | F16: 14 | G16: -
A17: 产品设计工程技术人员 | B17: 68 | C17: 2-02-34-01 | D17: 13 | E17: 0 | F17: 13 | G17: -
A18: 电工 | B18: 69 | C18: 6-31-01-03 | D18: 17 | E18: 7 | F18: 10 | G18: 2.43
A19: 外科医师 | B19: 70 | C19: 2-05-01-02 | D19: 5 | E19: 0 | F19: 5 | G19: =IFERROR(ROUND(D19/E19,2),"-") -> -
A20: 内科医师 | B20: 71 | C20: 2-05-01-01 | D20: 5 | E20: 0 | F20: 5 | G20: -
A21: 装配钳工 | B21: 72 | C21: 6-20-01-01 | D21: 13 | E21: 2 | F21: 11 | G21: 6.50
A22: 采矿工程技术人员 | B22: 73 | C22: 2-02-03-02 | D22: 6 | E22: 0 | F22: 6 | G22: -
B23: 74 | F23: 0 | G23: -
B24: 75 | F24: 0 | G24: -

Sheet 需求小于求职缺口最大的前二十个职业情况
A1: 续表六：需求小于求职缺口最大的前二十个职业（职业细类）
A2: 项 目 | B2: 代码 | C2: 职业代码 | D2: 需求小于求职缺口最大的前二十个职业（职业细类）
D3: 需求人数 | E3: 求职人数 | F3: 缺口数 | G3: 求人倍率
A4: 甲 | B4: 乙 | C4: 20 | D4: 21 | E4: 22 | F4: 23 | G4: 24
A5: 文字编辑 | B5: 76 | C5: 2-10-02-01 | D5: 9 | E5: 73 | F5: =E5-D5 -> 64 | G5: =IFERROR(ROUND(D5/E5,2),"-") -> 0.12
A6: 会计专业人员 | B6: 77 | C6: 2-06-03-00 | D6: 3 | E6: 86 | F6: =E6-D6 -> 83 | G6: 0.03
A7: 商品营业员 | B7: 78 | C7: 4-01-02-03 | D7: 2 | E7: 102 | F7: 100 | G7: 0.02
A8: 道路货运汽车驾驶员 | B8: 79 | C8: 4-02-02-02 | D8: 6 | E8: 44 | F8: 38 | G8: 0.14
A9: 餐厅服务员 | B9: 80 | C9: 4-03-02-05 | D9: 14 | E9: 51 | F9: 37 | G9: 0.27
A10: 保安员 | B10: 81 | C10: 4-07-05-01 | D10: 9 | E10: 71 | F10: 62 | G10: 0.13
A11: 砌筑工 | B11: 82 | C11: 6-29-01-01 | D11: 0 | E11: 51 | F11: 51 | G11: 0.00
A12: 农业工程技术人员 | B12: 83 | C12: 2-03-09-00 | D12: 0 | E12: 63 | F12: 63 | G12: 0.00
A13: 保洁员 | B13: 84 | C13: 4-09-08-01 | D13: 0 | E13: 20 | F13: 20 | G13: 0.00
A14: 米面主食制作工 | B14: 85 | C14: 6-02-03-01 | D14: 0 | E14: 38 | F14: 38 | G14: 0.00
A15: 计算机软件工程技术人员 | B15: 86 | C15: 2-02-10-03 | D15: 0 | E15: 18 | F15: 18 | G15: 0.00
A16: 电子仪器与电子测量工程技术人员 | B16: 87 | C16: 2-02-09-04 | D16: 0 | E16: 80 | F16: 80 | G16: 0.00
A17: 土木建筑工程技术人员 | B17: 88 | C17: 2-02-18-02 | D17: 0 | E17: 73 | F17: 73 | G17: 0.00
A18: 仓储管理员 | B18: 89 | C18: 4-02-06-01 | D18: 9 | E18: 16 | F18: 7 | G18: 0.56
A19: 收银员 | B19: 90 | C19: 4-01-02-04 | D19: 0 | E19: 95 | F19: 95 | G19: 0.00
A20: 客房服务员 | B20: 91 | C20: 4-03-01-02 | D20: 6 | E20: 74 | F20: 68 | G20: 0.08
A21: 装卸搬运工 | B21: 92 | C21: 4-02-05-01 | D21: 3 | E21: 97 | F21: 94 | G21: 0.03
A22: 工具五金制作工 | B22: 93 | C22: 6-19-01-01 | D22: 0 | E22: 50 | F22: 50 | G22: 0.00
A23: 电子商务师 | B23: 94 | C23: 4-01-06-01 | D23: 0 | E23: 26 | F23: 26 | G23: 0.00
B24: 95 | F24: 0 | G24: -

Sheet 按求职人员类别分组的求职人数
A1: 续表七：按求职人员类别分组的求职人数
C2: 求职人数 | D2: 求职比重（%）
C3: 人 | D3: %
A4: 甲 | B4: 序号 | C4: 25 | D4: 26
A5: 新成长失业青年 | B5: 97 | C5: 5,619 | D5: =IFERROR(ROUND(C5*100/$C$13,2),"-") -> 15.90
A6: 其中：应届高校毕业生 | B6: 98 | C6: 798 | D6: =IFERROR(ROUND(C6*100/$C$5,2),"-") -> 14.20
A7: 失业人员 | B7: 99 | C7: 3,184 | D7: 9.01
A8: 在业人员 | B8: 100 | C8: 4,286 | D8: =IFERROR(ROUND(C8*100/C13,2),"-") -> 12.13
A9: 退休人员 | B9: 101 | C9: 353 | D9: =IFERROR(ROUND(C9*100/C13,2),"-") -> 1.00
A10: 在学人员 | B10: 102 | C10: 4,983 | D10: =IFERROR(ROUND(C10*100/C13,2),"-") -> 14.10
A11: 本市农村求职人员 | B11: 103 | C11: 16,838 | D11: =IFERROR(ROUND(C11*100/C13,2),"-") -> 47.64
A12: 外地户籍求职人员 | B12: 104 | C12: 78 | D12: =IFERROR(ROUND(C12*100/$C$13,2),"-") -> 0.22
A13: 合计 | C13: =C5+C7+C8+C9+C10+C11+C12 -> 35,341 | D13: =IFERROR(ROUND(C13*100/$C$13,2),"-") -> 100

Sheet 按性别分组的供求人数
A1: 续表八：按性别分组的供求人数
C2: 劳动力供求人数比较
C3: 求职人数 | D3: 求职比重
C4: 人 | D4: %
A5: 甲 | B5: 序号 | C5: 29 | D5: 30
A6: 男 | B6: 106 | C6: 20,317 | D6: =IFERROR(ROUND(C6*100/$C$8,2),"-") -> 57.49
A7: 女 | B7: 107 | C7: 15,024 | D7: 42.51
A8: 合计 | C8: =C6+C7 -> 35,341 | D8: 100.00

Sheet 按年龄分组的供求人数
A1: 续表九：按年龄分组的供求人数
C2: 劳动力供求人数比较
C3: 需求人数 | D3: 需求比重 | E3: 求职人数 | F3: 求职比重 | G3: 求人倍率
C4: 人 | D4: % | E4: 人 | F4: % | G4: 倍
A5: 甲 | B5: 序号 | C5: 32 | D5: 33 | E5: 34 | F5: 35 | G5: 36
A6: 16-24岁 | B6: 110 | C6: 12,613 | D6: =IFERROR(ROUND(C6*100/$C$11,2),"-") -> 30.99 | E6: 14,224 | F6: =IFERROR(ROUND(E6*100/$E$11,2),"-") -> 40.25 | G6: =IFERROR(ROUND((C6+$C$10*E6/E11)/E6,2),"-") -> 1.07
A7: 25-34岁 | B7: 111 | C7: 10,985 | D7: 26.99 | E7: 9,883 | F7: 27.96 | G7: =IFERROR(ROUND((C7+C10*F7/100)/E7,2),"-") -> 1.29
A8: 35-44岁 | B8: 112 | C8: 6,593 | D8: 16.20 | E8: 6,357 | F8: 17.99 | G8: =IFERROR(ROUND((C8+C10*F8/100)/E8,2),"-") -> 1.22
A9: 45岁以上 | B9: 113 | C9: 4,147 | D9: 10.19 | E9: 4,877 | F9: 13.80 | G9: =IFERROR(ROUND((C9+C10*F9/100)/E9,2),"-") -> 1.03
A10: 无要求 | B10: 114 | C10: 6,363 | D10: 15.63 | E10: —— | F10: —— | G10: ——
A11: 合计 | C11: =C6+C7+C8+C9+C10 -> 40,701 | D11: 100 | E11: =E6+E7+E8+E9 -> 35,341 | F11: 100 | G11: =IFERROR(ROUND(C11/E11,2),"-") -> 1.15

Sheet 按文化程度分组的供求人数
A1: 续表十:按文化程度分组的供求人数
C2: 劳动力供求人数比较
C3: 需求人数 | D3: 需求比重 | E3: 求职人数 | F3: 求职比重 | G3: 求人倍率
C4: 人 | D4: % | E4: 人 | F4: % | G4: 倍
A5: 甲 | B5: 序号 | C5: 37 | D5: 38 | E5: 39 | F5: 40 | G5: 41
A6: 初中及以下 | B6: 116 | C6: 8,673 | D6: =IFERROR(ROUND(C6*100/$C$13,2),"-") -> 21.31 | E6: 9,128 | F6: =IFERROR(ROUND(E6*100/$E$13,2),"-") -> 25.83 | G6: =IFERROR(ROUND((C6+$C$12*E6/$E$13)/E6,2),"-") -> 1.07
A7: 高中 | B7: 117 | C7: 13,329 | D7: 32.75 | E7: 12,238 | F7: 34.63 | G7: 1.21
A8: 其中：职高、技校、中专 | B8: 118 | C8: 10,224 | D8: =IFERROR(ROUND(C8*100/$C$7,2),"-") -> 76.70 | E8: 7,149 | F8: =IFERROR(ROUND(E8*100/$E$7,2),"-") -> 58.42 | G8: =IFERROR(ROUND((C12*E7/E13+C7)*C8/C7/E8,2),"-") -> 1.59
A9: 大专 | B9: 119 | C9: 11,613 | D9: 28.53 | E9: 11,658 | F9: 32.99 | G9: 1.12
A10: 大学 | B10: 120 | C10: 2,719 | D10: 6.68 | E10: 2,307 | F10: 6.53 | G10: 1.30
A11: 硕士以上 | B11: 121 | C11: 20 | D11: 0.05 | E11: 10 | F11: 0.03 | G11: 2.12
A12: 无要求 | B12: 122 | C12: 4,347 | D12: 10.68 | E12: —— | F12: —— | G12: ——
A13: 合计 | C13: =C6+C7+C9+C10+C11+C12 -> 40,701 | D13: =(SUM(C6:C12)-C8)/C13*100 -> 100 | E13: =E6+E7+E9+E10+E11 -> 35,341 | F13: =(SUM(E6:E12)-E8)/E13*100 -> 100 | G13: ——

Sheet 按技术等级分组的供求人数
A1: 续表十一：按技术等级分组的供求人数
C2: 劳动力供求人数比较
C3: 需求人数 | D3: 需求比重 | E3: 求职人数 | F3: 求职比重 | G3: 求人倍率
C4: 人 | D4: % | E4: 人 | F4: % | G4: 倍
A5: 甲 | B5: 序号 | C5: 42 | D5: 43 | E5: 44 | F5: 45 | G5: 46
A6: 职业资格五级(初级技能) | B6: 124 | C6: 2,845 | D6: =IFERROR(ROUND(C6*100/C16,2),"-") -> 6.99 | E6: 2,226 | F6: =IFERROR(ROUND(E6*100/E16,2),"-") -> 6.30 | G6: =IFERROR((C6+$C$15*E6/$E$16)/E6,"-") -> 2.22
A7: 职业资格四级(中级技能) | B7: 125 | C7: 1,620 | D7: =IFERROR(ROUND(C7*100/C16,2),"-") -> 3.98 | E7: 1,033 | F7: =IFERROR(ROUND(E7*100/E16,2),"-") -> 2.92 | G7: 2.51
A8: 职业资格三级(高级技能) | B8: 126 | C8: 37 | D8: =IFERROR(ROUND(C8*100/C16,2),"-") -> 0.09 | E8: 25 | F8: =IFERROR(ROUND(E8*100/E16,2),"-") -> 0.07 | G8: 2.42
A9: 职业资格二级(技师) | B9: 127 | C9: 20 | D9: =IFERROR(ROUND(C9*100/C16,2),"-") -> 0.05 | E9: 7 | F9: =IFERROR(ROUND(E9*100/E16,2),"-") -> 0.02 | G9: 3.80
A10: 职业资格一级(高级技师) | B10: 128 | C10: 33 | D10: =IFERROR(ROUND(C10*100/C16,2),"-") -> 0.08 | E10: 14 | F10: =IFERROR(ROUND(E10*100/E16,2),"-") -> 0.04 | G10: 3.30
A11: 初级职称 | B11: 129 | C11: 2,869 | D11: =IFERROR(ROUND(C11*100/C16,2),"-") -> 7.05 | E11: 2,251 | F11: =IFERROR(ROUND(E11*100/E16,2),"-") -> 6.37 | G11: 2.21
A12: 中级职称 | B12: 130 | C12: 77 | D12: =IFERROR(ROUND(C12*100/C16,2),"-") -> 0.19 | E12: 57 | F12: =IFERROR(ROUND(E12*100/E16,2),"-") -> 0.16 | G12: 2.29
A13: 高级职称 | B13: 131 | C13: 16 | D13: =IFERROR(ROUND(C13*100/C16,2),"-") -> 0.04 | E13: 7 | F13: =IFERROR(ROUND(E13*100/E16,2),"-") -> 0.02 | G13: 3.22
A14: 无技术等级或职称 | B14: 132 | C14: —— | D14: —— | E14: 29,721 | F14: =IFERROR(ROUND(E14*100/E16,2),"-") -> 84.10 | G14: =IFERROR(($C$15*E14/$E$16)/E14,"-") -> 0.94
A15: 无要求 | B15: 133 | C15: 33,184 | D15: =IFERROR(ROUND(C15*100/$C$16,2),"-") -> 81.53 | E15: —— | F15: —— | G15: ——
A16: 合计 | C16: =C6+C7+C8+C9+C10+C11+C12+C13+C15 -> 40,701 | D16: =ROUND(C16*100/$C$16,2) -> 100 | E16: =E6+E7+E8+E9+E10+E11+E12+E13+E14 -> 35,341 | F16: =ROUND(E16*100/E16,2) -> 100 | G16: ——
